Workbook

Sheet CAPA
C2: GLOSSÁRIO | E2: ENTRADA | G2: SCHÄFFLER | I2: DELONG | K2: WRC | M2: BALMFORTH | O2: MATERIAIS

Sheet GLOSSÁRIO
B2: SOLDINOX® | D2: CAPA
B5: O SOLDINOX® é uma ferramenta matemática de simulação de soldas em ligas ferrosas em geral. Seu objetivo é prever a microestrutura final da poça de fusão, bem como
A6: estimar a dimensão e características da ZTA (zona termicamente afetada).
B8: Com base em diversos estudos, a microestrutura final é dependente do teor dos elementos de liga envolvidos. Observou-se empiricamente que o níquel induz à solidificação
A9: na forma austenítica (CFC), enquanto que o cromo favorece a ferrita (CCC). Notou-se, também, que os demais elementos de liga mais comuns tendem a se enquadrar nestas duas
A10: formas de estrutura final, favorecendo uma ou outra microestrutura, em maior ou menor grau. Com base nisso, se tornou possível correlacionar a composição química do metal
A11: (ou metais) de base, bem como dos consumíveis, à microestrutura final, com base no par ordenado Cromo Equivalente (Creq.) e Níquel Equivalente (Nieq.).
B13: A partir daí, diversos estudos deram origem aos diagramas de Schäffler, DeLong, WRC e Balmforth, que serão melhor detalhados a seguir.
B15: ABAS DO SOLDINOX®:
B18: ENTRADA - Interface de interação inicial entre o usuário e o SOLDINOX®, onde são informados os dados referentes aos materiais e consumíveis de solda - especificações e
A19: composição química pertinente - bem como os parâmetros de solda a serem implementados. Há espaço para a inclusão de 5 (cinco) materiais diferentes entre metais-base e
A20: consumíveis. Por exemplo, para uma soldagem dissimilar, onde duas ligas diferentes devam ser unidas, há possibilidade de simular ou mesclar até 3 (três) consumíveis diferentes.
A21: Estas informações são utilizadas nas outras abas, para a previsão da microestrutura de acordo com a situação.
A22: Os parâmetros de soldagem apresentarão o resultado na própria aba ENTRADA, que é a posição da temperatura de interesse no momento da soldagem. Esta posição é capaz
A23: de estimar uma possível origem de defeitos de microestrutura na ZTA, mediante a aplicação da equação de Adams.
A24: Todos os campos com fundo amarelo são editáveis.
B26: As demais abas possuem como característica comum o carregamento das composições químicas de todos os metais-base e consumíveis dispostos na ENTRADA nas
A27: linhas 1 a 5, que podem ser livremente escolhidos na coluna ESPECIFICAÇÃO, bem como permite a composição ponderada de dois ou três materiais/consumíveis, nas linhas 6 a 10.
A28: Tal ponderação é possibilitada pela diluição [coluna TEOR (%)]. Todos os campos com fundo azul são editáveis.
B31: SCHÄFFLER - A mais antiga equação para cromo equivalente e níquel equivalente, elaborada em 1949, obtidos da seguinte forma:
C33: Creq. = Cr + Mo + 1,5*Si +0,5*#, (onde # pode ser nióbio, titânio, etc.)
C35: Nieq. = Ni + 30*C + 0,5*Mn
B60: Regiões do gráfico:
B62: 1) Formação de trincas de solidificação ou por perda de ductilidade acima de 1250 ºC;
B63: 2) Fragilização por formação de fases intermetálicas após aquecimento entre cerca de 450 e 900 ºC;
B64: 3) Fragilização por crescimento de grão;
B65: 4) Fragilização e fissuração por formação de martensita.
B67: Pode-se observar, na parte central, na região de coexistência da ferrita e austenita, uma pequena área triangular que não é atingida por nenhum dos problemas
A68: indicados. De uma forma geral, os consumíveis de aços inoxidáveis austeníticos são projetados para, após diluição com o metal-base, fornecer uma solda cuja composição química
A69: resulte nesta região.
B72: DELONG - Em 1956, percebeu-se que a presença de nitrogênio na solda, seja por contaminação nos materiais ou atmosférica, é um importante fator austenitizante
A73: da poça de fusão, fato este ignorado por Schäffler. Desta forma, o cálculo de níquel equivalente é alterado da seguinte maneira:
C75: Nieq. = Ni + 30*C + 0,5*Mn + 30*N
B102: Esta alteração só é significativa na região Creq. x Nieq. destacada no diagrama de DeLong.
B105: WRC - De 1992. Permite prever a estrutura da poça de solidificação que utiliza os cálculos de Creq. e Nieq.
B133: Esta alteração só é significativa na região Creq. x Nieq. destacada no diagrama WRC.
B134: O diagrama WRC leva em consideração o efeito austenitizante (níquel equivalente) do cobre.
B135: Neste diagrama observa-se 4 formas de solidificação:
B137: A = austenita como fase primária e monofásica;
B138: F = ferrita como fase primária e monofásica;
B139: AF = austenita primária e um eutético de austenita e ferrita no espaço interdendrítico;
B140: FA = ferrita primária e um eutético de austenita e ferrita no espaço interdendrítico.
B143: BALMFORTH - Diagrama desenvolvido por Balmforth que representa um incremento significativo na previsão do teor de ferrita dos aços inoxidáveis martensíticos.
B170: MATERIAIS
B172: Banco de dados que contempla os metais-base e consumíveis de soldagem mais comuns para aplicações em aços inoxidáveis. Há espaço previsto para cadastro de novos
A173: materiais, de acordo com a necessidade do usuário. A coluna "ESPECIFICAÇÃO" é reservada para o nome do material, norma aplicada, etc. A coluna "TIPO" serve para classificar os
A174: materiais, conforme a tabela abaixo:
B176: SIGLA | C176: CLASSE
B177: A | C177: AUSTENÍTICO
B178: F | C178: FERRÍTICO
B179: M | C179: MARTENSÍTICO
B180: D | C180: DUPLEX
B181: SA | C181: SUPER-AUSTENÍTICO
B182: SF | C182: SUPER-FERRÍTICO
B183: SM | C183: SUPER-MARTENSÍTICO
B184: BL | C184: BAIXA LIGA
B185: EP | C185: ENDURECÍVEL POR PRECIPITAÇÃO
B186: EA | C186: ELETRODO AUSTENÍTICO
B188: As demais colunas se referem aos teores dos diversos elementos químicos de interesse. São valores médios.

Sheet ENTRADA
D2: CAPA
D3: COMPOSIÇÃO QUÍMICA MÉDIA (%)
B4: MATERIAIS E CONSUMÍVEIS | C4: ESPECIFICAÇÃO | D4: Carbono (C) | F4: Cobre (Cu) | H4: Cromo (Cr) | J4: Manganês (Mn) | L4: Molibdênio (Mo) | N4: Níquel (Ni) | P4: Nitrogênio (N) | R4: Silício (Si) | T4: Outros*
C5: AÇO ESTRUTURAL CASO HDT | D5: 0.087 | F5: 0.063 | H5: 5.873 | J5: 0.873 | L5: 1.973 | N5: 0.61 | P5: 0.012 | R5: 1.16 | T5: 0.79
C6: AWS ER309L | D6: 0.03 | F6: 0.75 | H6: 24 | J6: 1.75 | L6: 0.75 | N6: 13 | P6: 0 | R6: 0.475 | T6: 0
C7: AWS ER347 | D7: 0.08 | F7: 0 | H7: 19 | J7: 1 | L7: 1.2 | N7: 15 | P7: 0.13 | R7: 1.5 | T7: 0.8
B10: PARÂMETROS DE SOLDAGEM | C10: Temperatura inicial da chapa (ºC): | D10: 35 | F10: Eficiência de transferência de calor: | L10: 1 | N10: Velocidade de soldagem (mm/s): | T10: 10
C11: Temperatura de fusão (ºC): | D11: 1500 | F11: Tensão de soldagem (V): | L11: 40 | N11: Densidade do material (g/cm³): | T11: 7.85
C12: Temperatura de interesse (ºC): | D12: 770 | F12: Corrente de soldagem (A): | L12: 600 | N12: Calor específico do metal-base (J/g.ºC): | T12: 12
C13: Espessura da chapa (mm): | D13: 9.5 | F13: * Titânio (Ti), Nióbio (Nb), etc.
B14: POSIÇÃO DA TEMPERATURA DE INTERESSE (Equação de Adams - mm): | P14: =IF((OR(D10="",D11="",D12="",D13="",T10="",T11="",T12="")),(""),((((1/(D12-D10))-(1/(D11-D10)))*(L10*L11*L12*1000))/(4.13*T10*T11*T12*D13))) -> 0.4402350112
D15: 3 | F15: 4 | H15: 5 | J15: 6 | L15: 7 | N15: 8 | P15: 9 | R15: 10 | T15: 11
C16: ESPECIFICAÇÃO | D16: Carbono (C) | F16: Cobre (Cu) | H16: Cromo (Cr) | J16: Manganês (Mn) | L16: Molibdênio (Mo) | N16: Níquel (Ni) | P16: Nitrogênio (N) | R16: Silício (Si) | T16: Outros (Nb, Ti, Al, etc.)
C17: =C5 -> AÇO ESTRUTURAL CASO HDT | D17: =IF((OR(($C17=0),($C17=""))),(""),(VLOOKUP($C17,MATERIAIS!$B$5:$L$623,D$15,0))) -> 0.087 | F17: =IF((OR(($C17=0),($C17=""))),(""),(VLOOKUP($C17,MATERIAIS!$B$5:$L$623,F$15,0))) -> 0.063 | H17: =IF((OR(($C17=0),($C17=""))),(""),(VLOOKUP($C17,MATERIAIS!$B$5:$L$623,H$15,0))) -> 5.873 | J17: =IF((OR(($C17=0),($C17=""))),(""),(VLOOKUP($C17,MATERIAIS!$B$5:$L$623,J$15,0))) -> 0.873 | L17: =IF((OR(($C17=0),($C17=""))),(""),(VLOOKUP($C17,MATERIAIS!$B$5:$L$623,L$15,0))) -> 1.973 | N17: =IF((OR(($C17=0),($C17=""))),(""),(VLOOKUP($C17,MATERIAIS!$B$5:$L$623,N$15,0))) -> 0.61 | P17: =IF((OR(($C17=0),($C17=""))),(""),(VLOOKUP($C17,MATERIAIS!$B$5:$L$623,P$15,0))) -> 0.012 | R17: =IF((OR(($C17=0),($C17=""))),(""),(VLOOKUP($C17,MATERIAIS!$B$5:$L$623,R$15,0))) -> 1.16 | T17: =IF((OR(($C17=0),($C17=""))),(""),(VLOOKUP($C17,MATERIAIS!$B$5:$L$623,T$15,0))) -> 0.79
C18: =C6 -> AWS ER309L | D18: =IF((OR(($C18=0),($C18=""))),(""),(VLOOKUP($C18,MATERIAIS!$B$5:$L$623,D$15,0))) -> 0.03 | F18: =IF((OR(($C18=0),($C18=""))),(""),(VLOOKUP($C18,MATERIAIS!$B$5:$L$623,F$15,0))) -> 0.75 | H18: =IF((OR(($C18=0),($C18=""))),(""),(VLOOKUP($C18,MATERIAIS!$B$5:$L$623,H$15,0))) -> 24 | J18: =IF((OR(($C18=0),($C18=""))),(""),(VLOOKUP($C18,MATERIAIS!$B$5:$L$623,J$15,0))) -> 1.75 | L18: =IF((OR(($C18=0),($C18=""))),(""),(VLOOKUP($C18,MATERIAIS!$B$5:$L$623,L$15,0))) -> 0.75 | N18: =IF((OR(($C18=0),($C18=""))),(""),(VLOOKUP($C18,MATERIAIS!$B$5:$L$623,N$15,0))) -> 13 | P18: =IF((OR(($C18=0),($C18=""))),(""),(VLOOKUP($C18,MATERIAIS!$B$5:$L$623,P$15,0))) -> 0 | R18: =IF((OR(($C18=0),($C18=""))),(""),(VLOOKUP($C18,MATERIAIS!$B$5:$L$623,R$15,0))) -> 0.475 | T18: =IF((OR(($C18=0),($C18=""))),(""),(VLOOKUP($C18,MATERIAIS!$B$5:$L$623,T$15,0))) -> 0
C19: =C7 -> AWS ER347 | D19: =IF((OR(($C19=0),($C19=""))),(""),(VLOOKUP($C19,MATERIAIS!$B$5:$L$623,D$15,0))) -> 0.08 | F19: =IF((OR(($C19=0),($C19=""))),(""),(VLOOKUP($C19,MATERIAIS!$B$5:$L$623,F$15,0))) -> 0 | H19: =IF((OR(($C19=0),($C19=""))),(""),(VLOOKUP($C19,MATERIAIS!$B$5:$L$623,H$15,0))) -> 19 | J19: =IF((OR(($C19=0),($C19=""))),(""),(VLOOKUP($C19,MATERIAIS!$B$5:$L$623,J$15,0))) -> 1 | L19: =IF((OR(($C19=0),($C19=""))),(""),(VLOOKUP($C19,MATERIAIS!$B$5:$L$623,L$15,0))) -> 1.2 | N19: =IF((OR(($C19=0),($C19=""))),(""),(VLOOKUP($C19,MATERIAIS!$B$5:$L$623,N$15,0))) -> 15 | P19: =IF((OR(($C19=0),($C19=""))),(""),(VLOOKUP($C19,MATERIAIS!$B$5:$L$623,P$15,0))) -> 0.13 | R19: =IF((OR(($C19=0),($C19=""))),(""),(VLOOKUP($C19,MATERIAIS!$B$5:$L$623,R$15,0))) -> 1.5 | T19: =IF((OR(($C19=0),($C19=""))),(""),(VLOOKUP($C19,MATERIAIS!$B$5:$L$623,T$15,0))) -> 0.8
C20: =C8 -> 0 | D20: =IF((OR(($C20=0),($C20=""))),(""),(VLOOKUP($C20,MATERIAIS!$B$5:$L$623,D$15,0))) ->  | F20: =IF((OR(($C20=0),($C20=""))),(""),(VLOOKUP($C20,MATERIAIS!$B$5:$L$623,F$15,0))) ->  | H20: =IF((OR(($C20=0),($C20=""))),(""),(VLOOKUP($C20,MATERIAIS!$B$5:$L$623,H$15,0))) ->  | J20: =IF((OR(($C20=0),($C20=""))),(""),(VLOOKUP($C20,MATERIAIS!$B$5:$L$623,J$15,0))) ->  | L20: =IF((OR(($C20=0),($C20=""))),(""),(VLOOKUP($C20,MATERIAIS!$B$5:$L$623,L$15,0))) ->  | N20: =IF((OR(($C20=0),($C20=""))),(""),(VLOOKUP($C20,MATERIAIS!$B$5:$L$623,N$15,0))) ->  | P20: =IF((OR(($C20=0),($C20=""))),(""),(VLOOKUP($C20,MATERIAIS!$B$5:$L$623,P$15,0))) ->  | R20: =IF((OR(($C20=0),($C20=""))),(""),(VLOOKUP($C20,MATERIAIS!$B$5:$L$623,R$15,0))) ->  | T20: =IF((OR(($C20=0),($C20=""))),(""),(VLOOKUP($C20,MATERIAIS!$B$5:$L$623,T$15,0))) -> 
C21: =C9 -> 0 | D21: =IF((OR(($C21=0),($C21=""))),(""),(VLOOKUP($C21,MATERIAIS!$B$5:$L$623,D$15,0))) ->  | F21: =IF((OR(($C21=0),($C21=""))),(""),(VLOOKUP($C21,MATERIAIS!$B$5:$L$623,F$15,0))) ->  | H21: =IF((OR(($C21=0),($C21=""))),(""),(VLOOKUP($C21,MATERIAIS!$B$5:$L$623,H$15,0))) ->  | J21: =IF((OR(($C21=0),($C21=""))),(""),(VLOOKUP($C21,MATERIAIS!$B$5:$L$623,J$15,0))) ->  | L21: =IF((OR(($C21=0),($C21=""))),(""),(VLOOKUP($C21,MATERIAIS!$B$5:$L$623,L$15,0))) ->  | N21: =IF((OR(($C21=0),($C21=""))),(""),(VLOOKUP($C21,MATERIAIS!$B$5:$L$623,N$15,0))) ->  | P21: =IF((OR(($C21=0),($C21=""))),(""),(VLOOKUP($C21,MATERIAIS!$B$5:$L$623,P$15,0))) ->  | R21: =IF((OR(($C21=0),($C21=""))),(""),(VLOOKUP($C21,MATERIAIS!$B$5:$L$623,R$15,0))) ->  | T21: =IF((OR(($C21=0),($C21=""))),(""),(VLOOKUP($C21,MATERIAIS!$B$5:$L$623,T$15,0))) -> 

Sheet SCHÄFFLER
B2: DIAGRAMA DE SCHÄFFLER | H2: CAPA
F3: 5 | G3: 6 | H3: 7 | I3: 8 | J3: 9 | K3: 10 | L3: 11
B4: Nº | C4: ESPECIFICAÇÃO | E4: TEOR (%) | F4: Cr | G4: Mo | H4: Si | I4: * | J4: Ni | K4: C | L4: Mn | M4: Creq. | N4: Nieq.
B5: 1 | C5: AÇO ESTRUTURAL CASO HDT | E5: 100 | F5: =IF((C5=""),(""),(VLOOKUP(C5,ENTRADA!$C$5:$U$9,6,0))) -> 5.873 | G5: =IF((C5=""),(""),(VLOOKUP(C5,ENTRADA!$C$5:$U$9,10,0))) -> 1.973 | H5: =IF((C5=""),(""),(VLOOKUP(C5,ENTRADA!$C$5:$U$9,16,0))) -> 1.16 | I5: =IF((C5=""),(""),(VLOOKUP(C5,ENTRADA!$C$5:$U$9,18,0))) -> 0.79 | J5: =IF((C5=""),(""),(VLOOKUP(C5,ENTRADA!$C$5:$U$9,12,0))) -> 0.61 | K5: =IF((C5=""),(""),(VLOOKUP(C5,ENTRADA!$C$5:$U$9,2,0))) -> 0.087 | L5: =IF((C5=""),(""),(VLOOKUP(C5,ENTRADA!$C$5:$U$9,8,0))) -> 0.873 | M5: =IF((C5=""),(0),(F5+G5+1.5*H5+0.5*I5)) -> 9.981 | N5: =IF((C5=""),(0),(J5+30*K5+0.5*L5)) -> 3.6565
B6: 2 | C6: AWS ER309L | E6: 100 | F6: =IF((C6=""),(""),(VLOOKUP(C6,ENTRADA!$C$5:$U$9,6,0))) -> 24 | G6: =IF((C6=""),(""),(VLOOKUP(C6,ENTRADA!$C$5:$U$9,10,0))) -> 0.75 | H6: =IF((C6=""),(""),(VLOOKUP(C6,ENTRADA!$C$5:$U$9,16,0))) -> 0.475 | I6: =IF((C6=""),(""),(VLOOKUP(C6,ENTRADA!$C$5:$U$9,18,0))) -> 0 | J6: =IF((C6=""),(""),(VLOOKUP(C6,ENTRADA!$C$5:$U$9,12,0))) -> 13 | K6: =IF((C6=""),(""),(VLOOKUP(C6,ENTRADA!$C$5:$U$9,2,0))) -> 0.03 | L6: =IF((C6=""),(""),(VLOOKUP(C6,ENTRADA!$C$5:$U$9,8,0))) -> 1.75 | M6: 25.4625 | N6: 14.775
B7: 3 | C7: AWS ER347 | E7: 100 | F7: =IF((C7=""),(""),(VLOOKUP(C7,ENTRADA!$C$5:$U$9,6,0))) -> 19 | G7: =IF((C7=""),(""),(VLOOKUP(C7,ENTRADA!$C$5:$U$9,10,0))) -> 1.2 | H7: =IF((C7=""),(""),(VLOOKUP(C7,ENTRADA!$C$5:$U$9,16,0))) -> 1.5 | I7: =IF((C7=""),(""),(VLOOKUP(C7,ENTRADA!$C$5:$U$9,18,0))) -> 0.8 | J7: =IF((C7=""),(""),(VLOOKUP(C7,ENTRADA!$C$5:$U$9,12,0))) -> 15 | K7: =IF((C7=""),(""),(VLOOKUP(C7,ENTRADA!$C$5:$U$9,2,0))) -> 0.08 | L7: =IF((C7=""),(""),(VLOOKUP(C7,ENTRADA!$C$5:$U$9,8,0))) -> 1 | M7: 22.85 | N7: 17.9
B8: 4 | E8: 100 | F8: =IF((C8=""),(""),(VLOOKUP(C8,ENTRADA!$C$5:$U$9,6,0))) ->  | G8: =IF((C8=""),(""),(VLOOKUP(C8,ENTRADA!$C$5:$U$9,10,0))) ->  | H8: =IF((C8=""),(""),(VLOOKUP(C8,ENTRADA!$C$5:$U$9,16,0))) ->  | I8: =IF((C8=""),(""),(VLOOKUP(C8,ENTRADA!$C$5:$U$9,18,0))) ->  | J8: =IF((C8=""),(""),(VLOOKUP(C8,ENTRADA!$C$5:$U$9,12,0))) ->  | K8: =IF((C8=""),(""),(VLOOKUP(C8,ENTRADA!$C$5:$U$9,2,0))) ->  | L8: =IF((C8=""),(""),(VLOOKUP(C8,ENTRADA!$C$5:$U$9,8,0))) ->  | M8: =IF((C8=""),(0),(F8+G8+1.5*H8+0.5*I8)) -> 0 | N8: =IF((C8=""),(0),(J8+30*K8+0.5*L8)) -> 0
B9: 5 | E9: 100 | F9: =IF((C9=""),(""),(VLOOKUP(C9,ENTRADA!$C$5:$U$9,6,0))) ->  | G9: =IF((C9=""),(""),(VLOOKUP(C9,ENTRADA!$C$5:$U$9,10,0))) ->  | H9: =IF((C9=""),(""),(VLOOKUP(C9,ENTRADA!$C$5:$U$9,16,0))) ->  | I9: =IF((C9=""),(""),(VLOOKUP(C9,ENTRADA!$C$5:$U$9,18,0))) ->  | J9: =IF((C9=""),(""),(VLOOKUP(C9,ENTRADA!$C$5:$U$9,12,0))) ->  | K9: =IF((C9=""),(""),(VLOOKUP(C9,ENTRADA!$C$5:$U$9,2,0))) ->  | L9: =IF((C9=""),(""),(VLOOKUP(C9,ENTRADA!$C$5:$U$9,8,0))) ->  | M9: =IF((C9=""),(0),(F9+G9+1.5*H9+0.5*I9)) -> 0 | N9: =IF((C9=""),(0),(J9+30*K9+0.5*L9)) -> 0
B10: 6 | C10: =CONCATENATE((D10),(IF((D11=""),(""),(" + "))),D11,(IF((D12=""),(""),(" + "))),D12) -> 1 + 2 | D10: 1 | E10: 60 | F10: =(IF((OR(($D10=""),($D10=0))),(0),(($E10/100)*(VLOOKUP($D10,$B$5:$L$9,F$3,0)))))+(IF((OR(($D11=""),($D11=0))),(0),(($E11/100)*(VLOOKUP($D11,$B$5:$L$9,F$3,0)))))+(IF((OR(($D12=""),($D12=0))),(0),(($E12/100)*(VLOOKUP($D12,$B$5:$L$9,F$3,0))))) -> 13.1238 | G10: =(IF((OR(($D10=""),($D10=0))),(0),(($E10/100)*(VLOOKUP($D10,$B$5:$L$9,G$3,0)))))+(IF((OR(($D11=""),($D11=0))),(0),(($E11/100)*(VLOOKUP($D11,$B$5:$L$9,G$3,0)))))+(IF((OR(($D12=""),($D12=0))),(0),(($E12/100)*(VLOOKUP($D12,$B$5:$L$9,G$3,0))))) -> 1.4838 | H10: 0.886 | I10: 0.474 | J10: 5.566 | K10: 0.0642 | L10: 1.2238 | M10: =IF((C10=""),(0),(F10+G10+1.5*H10+0.5*I10)) -> 16.1736 | N10: =IF((C10=""),(0),(J10+30*K10+0.5*L10)) -> 8.1039
D11: 2 | E11: 40
E12: =100-(E10+E11) -> 0
B13: 7 | C13: =CONCATENATE((D13),(IF((D14=""),(""),(" + "))),D14,(IF((D15=""),(""),(" + "))),D15) -> 6 + 3 | D13: 6 | E13: 30 | F13: =(IF((OR(($D13=""),($D13=0))),(0),(($E13/100)*(VLOOKUP($D13,$B$5:$L$10,F$3,0)))))+(IF((OR(($D14=""),($D14=0))),(0),(($E14/100)*(VLOOKUP($D14,$B$5:$L$10,F$3,0)))))+(IF((OR(($D15=""),($D15=0))),(0),(($E15/100)*(VLOOKUP($D15,$B$5:$L$10,F$3,0))))) -> 17.23714 | G13: =(IF((OR(($D13=""),($D13=0))),(0),(($E13/100)*(VLOOKUP($D13,$B$5:$L$10,G$3,0)))))+(IF((OR(($D14=""),($D14=0))),(0),(($E14/100)*(VLOOKUP($D14,$B$5:$L$10,G$3,0)))))+(IF((OR(($D15=""),($D15=0))),(0),(($E15/100)*(VLOOKUP($D15,$B$5:$L$10,G$3,0))))) -> 1.28514 | H13: 1.3158 | I13: 0.7022 | J13: 12.1698 | K13: 0.07526 | L13: =(IF((OR(($D13=""),($D13=0))),(0),(($E13/100)*(VLOOKUP($D13,$B$5:$L$10,L$3,0)))))+(IF((OR(($D14=""),($D14=0))),(0),(($E14/100)*(VLOOKUP($D14,$B$5:$L$10,L$3,0)))))+(IF((OR(($D15=""),($D15=0))),(0),(($E15/100)*(VLOOKUP($D15,$B$5:$L$10,L$3,0))))) -> 1.06714 | M13: =IF((C13=""),(0),(F13+G13+1.5*H13+0.5*I13)) -> 20.84708 | N13: =J13+30*K13+0.5*L13 -> 14.96117
D14: 3 | E14: 70
E15: =100-(E13+E14) -> 0
B16: 8 | C16: =CONCATENATE((D16),(IF((D17=""),(""),(" + "))),D17,(IF((D18=""),(""),(" + "))),D18) ->  | F16: =(IF((OR(($D16=""),($D16=0))),(0),(($E16/100)*(VLOOKUP($D16,$B$5:$L$13,F$3,0)))))+(IF((OR(($D17=""),($D17=0))),(0),(($E17/100)*(VLOOKUP($D17,$B$5:$L$13,F$3,0)))))+(IF((OR(($D18=""),($D18=0))),(0),(($E18/100)*(VLOOKUP($D18,$B$5:$L$13,F$3,0))))) -> 0 | G16: =(IF((OR(($D16=""),($D16=0))),(0),(($E16/100)*(VLOOKUP($D16,$B$5:$L$13,G$3,0)))))+(IF((OR(($D17=""),($D17=0))),(0),(($E17/100)*(VLOOKUP($D17,$B$5:$L$13,G$3,0)))))+(IF((OR(($D18=""),($D18=0))),(0),(($E18/100)*(VLOOKUP($D18,$B$5:$L$13,G$3,0))))) -> 0 | H16: 0 | I16: 0 | J16: 0 | K16: 0 | L16: 0 | M16: =IF((C16=""),(0),(F16+G16+1.5*H16+0.5*I16)) -> 0 | N16: =J16+30*K16+0.5*L16 -> 0
E18: =100-(E16+E17) -> 100
B19: 9 | C19: =CONCATENATE((D19),(IF((D20=""),(""),(" + "))),D20,(IF((D21=""),(""),(" + "))),D21) ->  | F19: =(IF((OR(($D19=""),($D19=0))),(0),(($E19/100)*(VLOOKUP($D19,$B$5:$L$16,F$3,0)))))+(IF((OR(($D20=""),($D20=0))),(0),(($E20/100)*(VLOOKUP($D20,$B$5:$L$16,F$3,0)))))+(IF((OR(($D21=""),($D21=0))),(0),(($E21/100)*(VLOOKUP($D21,$B$5:$L$16,F$3,0))))) -> 0 | G19: =(IF((OR(($D19=""),($D19=0))),(0),(($E19/100)*(VLOOKUP($D19,$B$5:$L$16,G$3,0)))))+(IF((OR(($D20=""),($D20=0))),(0),(($E20/100)*(VLOOKUP($D20,$B$5:$L$16,G$3,0)))))+(IF((OR(($D21=""),($D21=0))),(0),(($E21/100)*(VLOOKUP($D21,$B$5:$L$16,G$3,0))))) -> 0 | H19: 0 | I19: 0 | J19: 0 | K19: 0 | L19: 0 | M19: =IF((C19=""),(0),(F19+G19+1.5*H19+0.5*I19)) -> 0 | N19: =J19+30*K19+0.5*L19 -> 0
E21: =100-(E19+E20) -> 100
B22: 10 | C22: =CONCATENATE((D22),(IF((D23=""),(""),(" + "))),D23,(IF((D24=""),(""),(" + "))),D24) ->  | F22: =(IF((OR(($D22=""),($D22=0))),(0),(($E22/100)*(VLOOKUP($D22,$B$5:$L$19,F$3,0)))))+(IF((OR(($D23=""),($D23=0))),(0),(($E23/100)*(VLOOKUP($D23,$B$5:$L$19,F$3,0)))))+(IF((OR(($D24=""),($D24=0))),(0),(($E24/100)*(VLOOKUP($D24,$B$5:$L$19,F$3,0))))) -> 0 | G22: =(IF((OR(($D22=""),($D22=0))),(0),(($E22/100)*(VLOOKUP($D22,$B$5:$L$19,G$3,0)))))+(IF((OR(($D23=""),($D23=0))),(0),(($E23/100)*(VLOOKUP($D23,$B$5:$L$19,G$3,0)))))+(IF((OR(($D24=""),($D24=0))),(0),(($E24/100)*(VLOOKUP($D24,$B$5:$L$19,G$3,0))))) -> 0 | H22: 0 | I22: 0 | J22: 0 | K22: 0 | L22: 0 | M22: =IF((C22=""),(0),(F22+G22+1.5*H22+0.5*I22)) -> 0 | N22: =J22+30*K22+0.5*L22 -> 0
E24: =100-(E22+E23) -> 100
P31: * Nb, Ti, etc.

Sheet DELONG
B2: DIAGRAMA DE DELONG | H2: CAPA
F3: 5 | G3: 6 | H3: 7 | I3: 8 | J3: 9 | K3: 10 | L3: 11 | M3: 12
B4: Nº | C4: ESPECIFICAÇÃO | E4: TEOR (%) | F4: Cr | G4: Mo | H4: Si | I4: * | J4: Ni | K4: C | L4: N | M4: Mn | N4: Creq. | O4: Nieq.
B5: 1 | C5: =IF((SCHÄFFLER!C5=""),(""),(SCHÄFFLER!C5)) -> AÇO ESTRUTURAL CASO HDT | E5: 100 | F5: =SCHÄFFLER!F5 -> 5.873 | G5: =SCHÄFFLER!G5 -> 1.973 | H5: =SCHÄFFLER!H5 -> 1.16 | I5: =SCHÄFFLER!I5 -> 0.79 | J5: =SCHÄFFLER!J5 -> 0.61 | K5: =SCHÄFFLER!K5 -> 0.087 | L5: =IF((C5=""),(""),(VLOOKUP(C5,ENTRADA!$C$5:$U$9,14,0))) -> 0.012 | M5: =SCHÄFFLER!L5 -> 0.873 | N5: =IF((C5=""),(0),(F5+G5+1.5*H5+0.5*I5)) -> 9.981 | O5: =IF((C5=""),(0),(J5+30*K5+30*L5+0.5*M5)) -> 4.0165
B6: 2 | C6: =IF((SCHÄFFLER!C6=""),(""),(SCHÄFFLER!C6)) -> AWS ER309L | E6: 100 | F6: =SCHÄFFLER!F6 -> 24 | G6: =SCHÄFFLER!G6 -> 0.75 | H6: =SCHÄFFLER!H6 -> 0.475 | I6: =SCHÄFFLER!I6 -> 0 | J6: =SCHÄFFLER!J6 -> 13 | K6: =SCHÄFFLER!K6 -> 0.03 | L6: =IF((C6=""),(""),(VLOOKUP(C6,ENTRADA!$C$5:$U$9,14,0))) -> 0 | M6: =SCHÄFFLER!L6 -> 1.75 | N6: =IF((C6=""),(0),(F6+G6+1.5*H6+0.5*I6)) -> 25.4625 | O6: =IF((C6=""),(0),(J6+30*K6+30*L6+0.5*M6)) -> 14.775
B7: 3 | C7: =IF((SCHÄFFLER!C7=""),(""),(SCHÄFFLER!C7)) -> AWS ER347 | E7: 100 | F7: =SCHÄFFLER!F7 -> 19 | G7: =SCHÄFFLER!G7 -> 1.2 | H7: =SCHÄFFLER!H7 -> 1.5 | I7: =SCHÄFFLER!I7 -> 0.8 | J7: =SCHÄFFLER!J7 -> 15 | K7: =SCHÄFFLER!K7 -> 0.08 | L7: =IF((C7=""),(""),(VLOOKUP(C7,ENTRADA!$C$5:$U$9,14,0))) -> 0.13 | M7: =SCHÄFFLER!L7 -> 1 | N7: 22.85 | O7: 21.8
B8: 4 | C8: =IF((SCHÄFFLER!C8=""),(""),(SCHÄFFLER!C8)) ->  | E8: 100 | F8: =SCHÄFFLER!F8 ->  | G8: =SCHÄFFLER!G8 ->  | H8: =SCHÄFFLER!H8 ->  | I8: =SCHÄFFLER!I8 ->  | J8: =SCHÄFFLER!J8 ->  | K8: =SCHÄFFLER!K8 ->  | L8: =IF((C8=""),(""),(VLOOKUP(C8,ENTRADA!$C$5:$U$9,14,0))) ->  | M8: =SCHÄFFLER!L8 ->  | N8: 0 | O8: 0
B9: 5 | C9: =IF((SCHÄFFLER!C9=""),(""),(SCHÄFFLER!C9)) ->  | E9: 100 | F9: =SCHÄFFLER!F9 ->  | G9: =SCHÄFFLER!G9 ->  | H9: =SCHÄFFLER!H9 ->  | I9: =SCHÄFFLER!I9 ->  | J9: =SCHÄFFLER!J9 ->  | K9: =SCHÄFFLER!K9 ->  | L9: =IF((C9=""),(""),(VLOOKUP(C9,ENTRADA!$C$5:$U$9,14,0))) ->  | M9: =SCHÄFFLER!L9 ->  | N9: 0 | O9: 0
B10: 6 | C10: =CONCATENATE((D10),(IF((D11=""),(""),(" + "))),D11,(IF((D12=""),(""),(" + "))),D12) -> 1 + 2 | D10: 1 | E10: 60 | F10: =(IF((OR(($D10=""),($D10=0))),(0),(($E10/100)*(VLOOKUP($D10,$B$5:$M$9,F$3,0)))))+(IF((OR(($D11=""),($D11=0))),(0),(($E11/100)*(VLOOKUP($D11,$B$5:$M$9,F$3,0)))))+(IF((OR(($D12=""),($D12=0))),(0),(($E12/100)*(VLOOKUP($D12,$B$5:$M$9,F$3,0))))) -> 13.1238 | G10: =(IF((OR(($D10=""),($D10=0))),(0),(($E10/100)*(VLOOKUP($D10,$B$5:$M$9,G$3,0)))))+(IF((OR(($D11=""),($D11=0))),(0),(($E11/100)*(VLOOKUP($D11,$B$5:$M$9,G$3,0)))))+(IF((OR(($D12=""),($D12=0))),(0),(($E12/100)*(VLOOKUP($D12,$B$5:$M$9,G$3,0))))) -> 1.4838 | H10: 0.886 | I10: 0.474 | J10: 5.566 | K10: 0.0642 | L10: =(IF((OR(($D10=""),($D10=0))),(0),(($E10/100)*(VLOOKUP($D10,$B$5:$M$9,L$3,0)))))+(IF((OR(($D11=""),($D11=0))),(0),(($E11/100)*(VLOOKUP($D11,$B$5:$M$9,L$3,0)))))+(IF((OR(($D12=""),($D12=0))),(0),(($E12/100)*(VLOOKUP($D12,$B$5:$M$9,L$3,0))))) -> 0.0072 | M10: 1.2238 | N10: =IF((C10=""),(0),(F10+G10+1.5*H10+0.5*I10)) -> 16.1736 | O10: =IF((C10=""),(0),(J10+30*K10+30*L10+0.5*M10)) -> 8.3199
D11: 2 | E11: 40
E12: =100-(E10+E11) -> 0
B13: 7 | C13: =CONCATENATE((D13),(IF((D14=""),(""),(" + "))),D14,(IF((D15=""),(""),(" + "))),D15) -> 6 + 3 | D13: 6 | E13: 30 | F13: =(IF((OR(($D13=""),($D13=0))),(0),(($E13/100)*(VLOOKUP($D13,$B$5:$M$10,F$3,0)))))+(IF((OR(($D14=""),($D14=0))),(0),(($E14/100)*(VLOOKUP($D14,$B$5:$M$10,F$3,0)))))+(IF((OR(($D15=""),($D15=0))),(0),(($E15/100)*(VLOOKUP($D15,$B$5:$M$10,F$3,0))))) -> 17.23714 | G13: =(IF((OR(($D13=""),($D13=0))),(0),(($E13/100)*(VLOOKUP($D13,$B$5:$M$10,G$3,0)))))+(IF((OR(($D14=""),($D14=0))),(0),(($E14/100)*(VLOOKUP($D14,$B$5:$M$10,G$3,0)))))+(IF((OR(($D15=""),($D15=0))),(0),(($E15/100)*(VLOOKUP($D15,$B$5:$M$10,G$3,0))))) -> 1.28514 | H13: 1.3158 | I13: 0.7022 | J13: 12.1698 | K13: 0.07526 | L13: =(IF((OR(($D13=""),($D13=0))),(0),(($E13/100)*(VLOOKUP($D13,$B$5:$M$10,L$3,0)))))+(IF((OR(($D14=""),($D14=0))),(0),(($E14/100)*(VLOOKUP($D14,$B$5:$M$10,L$3,0)))))+(IF((OR(($D15=""),($D15=0))),(0),(($E15/100)*(VLOOKUP($D15,$B$5:$M$10,L$3,0))))) -> 0.09316 | M13: 1.06714 | N13: =IF((C13=""),(0),(F13+G13+1.5*H13+0.5*I13)) -> 20.84708 | O13: =IF((C13=""),(0),(J13+30*K13+30*L13+0.5*M13)) -> 17.75597
D14: 3 | E14: 70
E15: =100-(E13+E14) -> 0
B16: 8 | C16: =CONCATENATE((D16),(IF((D17=""),(""),(" + "))),D17,(IF((D18=""),(""),(" + "))),D18) ->  | F16: =(IF((OR(($D16=""),($D16=0))),(0),(($E16/100)*(VLOOKUP($D16,$B$5:$M$13,F$3,0)))))+(IF((OR(($D17=""),($D17=0))),(0),(($E17/100)*(VLOOKUP($D17,$B$5:$M$13,F$3,0)))))+(IF((OR(($D18=""),($D18=0))),(0),(($E18/100)*(VLOOKUP($D18,$B$5:$M$13,F$3,0))))) -> 0 | G16: =(IF((OR(($D16=""),($D16=0))),(0),(($E16/100)*(VLOOKUP($D16,$B$5:$M$13,G$3,0)))))+(IF((OR(($D17=""),($D17=0))),(0),(($E17/100)*(VLOOKUP($D17,$B$5:$M$13,G$3,0)))))+(IF((OR(($D18=""),($D18=0))),(0),(($E18/100)*(VLOOKUP($D18,$B$5:$M$13,G$3,0))))) -> 0 | H16: 0 | I16: 0 | J16: 0 | K16: 0 | L16: =(IF((OR(($D16=""),($D16=0))),(0),(($E16/100)*(VLOOKUP($D16,$B$5:$M$13,L$3,0)))))+(IF((OR(($D17=""),($D17=0))),(0),(($E17/100)*(VLOOKUP($D17,$B$5:$M$13,L$3,0)))))+(IF((OR(($D18=""),($D18=0))),(0),(($E18/100)*(VLOOKUP($D18,$B$5:$M$13,L$3,0))))) -> 0 | M16: 0 | N16: =IF((C16=""),(0),(F16+G16+1.5*H16+0.5*I16)) -> 0 | O16: =IF((C16=""),(0),(J16+30*K16+30*L16+0.5*M16)) -> 0
E18: =100-(E16+E17) -> 100
B19: 9 | C19: =CONCATENATE((D19),(IF((D20=""),(""),(" + "))),D20,(IF((D21=""),(""),(" + "))),D21) ->  | F19: =(IF((OR(($D19=""),($D19=0))),(0),(($E19/100)*(VLOOKUP($D19,$B$5:$M$16,F$3,0)))))+(IF((OR(($D20=""),($D20=0))),(0),(($E20/100)*(VLOOKUP($D20,$B$5:$M$16,F$3,0)))))+(IF((OR(($D21=""),($D21=0))),(0),(($E21/100)*(VLOOKUP($D21,$B$5:$M$16,F$3,0))))) -> 0 | G19: =(IF((OR(($D19=""),($D19=0))),(0),(($E19/100)*(VLOOKUP($D19,$B$5:$M$16,G$3,0)))))+(IF((OR(($D20=""),($D20=0))),(0),(($E20/100)*(VLOOKUP($D20,$B$5:$M$16,G$3,0)))))+(IF((OR(($D21=""),($D21=0))),(0),(($E21/100)*(VLOOKUP($D21,$B$5:$M$16,G$3,0))))) -> 0 | H19: 0 | I19: 0 | J19: 0 | K19: 0 | L19: =(IF((OR(($D19=""),($D19=0))),(0),(($E19/100)*(VLOOKUP($D19,$B$5:$M$16,L$3,0)))))+(IF((OR(($D20=""),($D20=0))),(0),(($E20/100)*(VLOOKUP($D20,$B$5:$M$16,L$3,0)))))+(IF((OR(($D21=""),($D21=0))),(0),(($E21/100)*(VLOOKUP($D21,$B$5:$M$16,L$3,0))))) -> 0 | M19: 0 | N19: =IF((C19=""),(0),(F19+G19+1.5*H19+0.5*I19)) -> 0 | O19: =IF((C19=""),(0),(J19+30*K19+30*L19+0.5*M19)) -> 0
E21: =100-(E19+E20) -> 100
B22: 10 | C22: =CONCATENATE((D22),(IF((D23=""),(""),(" + "))),D23,(IF((D24=""),(""),(" + "))),D24) ->  | F22: =(IF((OR(($D22=""),($D22=0))),(0),(($E22/100)*(VLOOKUP($D22,$B$5:$M$19,F$3,0)))))+(IF((OR(($D23=""),($D23=0))),(0),(($E23/100)*(VLOOKUP($D23,$B$5:$M$19,F$3,0)))))+(IF((OR(($D24=""),($D24=0))),(0),(($E24/100)*(VLOOKUP($D24,$B$5:$M$19,F$3,0))))) -> 0 | G22: =(IF((OR(($D22=""),($D22=0))),(0),(($E22/100)*(VLOOKUP($D22,$B$5:$M$19,G$3,0)))))+(IF((OR(($D23=""),($D23=0))),(0),(($E23/100)*(VLOOKUP($D23,$B$5:$M$19,G$3,0)))))+(IF((OR(($D24=""),($D24=0))),(0),(($E24/100)*(VLOOKUP($D24,$B$5:$M$19,G$3,0))))) -> 0 | H22: 0 | I22: 0 | J22: 0 | K22: 0 | L22: =(IF((OR(($D22=""),($D22=0))),(0),(($E22/100)*(VLOOKUP($D22,$B$5:$M$19,L$3,0)))))+(IF((OR(($D23=""),($D23=0))),(0),(($E23/100)*(VLOOKUP($D23,$B$5:$M$19,L$3,0)))))+(IF((OR(($D24=""),($D24=0))),(0),(($E24/100)*(VLOOKUP($D24,$B$5:$M$19,L$3,0))))) -> 0 | M22: 0 | N22: =IF((C22=""),(0),(F22+G22+1.5*H22+0.5*I22)) -> 0 | O22: =IF((C22=""),(0),(J22+30*K22+30*L22+0.5*M22)) -> 0
E24: =100-(E22+E23) -> 100
Q31: * Nb, Ti, etc.

Sheet WRC
B2: DIAGRAMA WRC | H2: CAPA
F3: 5 | G3: 6 | H3: 7 | I3: 8 | J3: 9 | K3: 10 | L3: 11
B4: Nº | C4: ESPECIFICAÇÃO | E4: TEOR (%) | F4: Cr | G4: Mo | H4: * | I4: Ni | J4: C | K4: N | L4: Cu | M4: Creq. | N4: Nieq.
B5: 1 | C5: =IF((SCHÄFFLER!C5=""),(""),(SCHÄFFLER!C5)) -> AÇO ESTRUTURAL CASO HDT | E5: 100 | F5: =SCHÄFFLER!F5 -> 5.873 | G5: =SCHÄFFLER!G5 -> 1.973 | H5: =SCHÄFFLER!I5 -> 0.79 | I5: =SCHÄFFLER!J5 -> 0.61 | J5: =SCHÄFFLER!K5 -> 0.087 | K5: =DELONG!L5 -> 0.012 | L5: =IF((C5=""),(""),(VLOOKUP(C5,ENTRADA!$C$5:$U$9,4,0))) -> 0.063 | M5: =IF((C5=""),(0),(F5+G5+0.7*H5)) -> 8.399 | N5: =IF((C5=""),(0),(I5+35*J5+20*K5+0.25*L5)) -> 3.91075
B6: 2 | C6: =IF((SCHÄFFLER!C6=""),(""),(SCHÄFFLER!C6)) -> AWS ER309L | E6: 100 | F6: =SCHÄFFLER!F6 -> 24 | G6: =SCHÄFFLER!G6 -> 0.75 | H6: =SCHÄFFLER!I6 -> 0 | I6: =SCHÄFFLER!J6 -> 13 | J6: =SCHÄFFLER!K6 -> 0.03 | K6: =DELONG!L6 -> 0 | L6: =IF((C6=""),(""),(VLOOKUP(C6,ENTRADA!$C$5:$U$9,4,0))) -> 0.75 | M6: =IF((C6=""),(0),(F6+G6+0.7*H6)) -> 24.75 | N6: =IF((C6=""),(0),(I6+35*J6+20*K6+0.25*L6)) -> 14.2375
B7: 3 | C7: =IF((SCHÄFFLER!C7=""),(""),(SCHÄFFLER!C7)) -> AWS ER347 | E7: 100 | F7: =SCHÄFFLER!F7 -> 19 | G7: =SCHÄFFLER!G7 -> 1.2 | H7: =SCHÄFFLER!I7 -> 0.8 | I7: =SCHÄFFLER!J7 -> 15 | J7: =SCHÄFFLER!K7 -> 0.08 | K7: =DELONG!L7 -> 0.13 | L7: =IF((C7=""),(""),(VLOOKUP(C7,ENTRADA!$C$5:$U$9,4,0))) -> 0 | M7: 20.76 | N7: 20.4
B8: 4 | C8: =IF((SCHÄFFLER!C8=""),(""),(SCHÄFFLER!C8)) ->  | E8: 100 | F8: =SCHÄFFLER!F8 ->  | G8: =SCHÄFFLER!G8 ->  | H8: =SCHÄFFLER!I8 ->  | I8: =SCHÄFFLER!J8 ->  | J8: =SCHÄFFLER!K8 ->  | K8: =DELONG!L8 ->  | L8: =IF((C8=""),(""),(VLOOKUP(C8,ENTRADA!$C$5:$U$9,4,0))) ->  | M8: 0 | N8: 0
B9: 5 | C9: =IF((SCHÄFFLER!C9=""),(""),(SCHÄFFLER!C9)) ->  | E9: 100 | F9: =SCHÄFFLER!F9 ->  | G9: =SCHÄFFLER!G9 ->  | H9: =SCHÄFFLER!I9 ->  | I9: =SCHÄFFLER!J9 ->  | J9: =SCHÄFFLER!K9 ->  | K9: =DELONG!L9 ->  | L9: =IF((C9=""),(""),(VLOOKUP(C9,ENTRADA!$C$5:$U$9,4,0))) ->  | M9: 0 | N9: =IF((C9=""),(0),(I9+35*J9+20*K9+0.25*L9)) -> 0
B10: 6 | C10: =CONCATENATE((D10),(IF((D11=""),(""),(" + "))),D11,(IF((D12=""),(""),(" + "))),D12) -> 1 + 2 | D10: 1 | E10: 60 | F10: =(IF((OR(($D10=""),($D10=0))),(0),(($E10/100)*(VLOOKUP($D10,$B$5:$L$9,F$3,0)))))+(IF((OR(($D11=""),($D11=0))),(0),(($E11/100)*(VLOOKUP($D11,$B$5:$L$9,F$3,0)))))+(IF((OR(($D12=""),($D12=0))),(0),(($E12/100)*(VLOOKUP($D12,$B$5:$L$9,F$3,0))))) -> 13.1238 | G10: 1.4838 | H10: 0.474 | I10: 5.566 | J10: 0.0642 | K10: 0.0072 | L10: 0.3378 | M10: =IF((C10=""),(0),(F10+G10+0.7*H10)) -> 14.9394 | N10: =IF((C10=""),(0),(I10+35*J10+20*K10+0.25*L10)) -> 8.04145
D11: 2 | E11: 40
E12: =100-(E10+E11) -> 0
B13: 7 | C13: =CONCATENATE((D13),(IF((D14=""),(""),(" + "))),D14,(IF((D15=""),(""),(" + "))),D15) -> 6 + 3 | D13: 6 | E13: 30 | F13: =(IF((OR(($D13=""),($D13=0))),(0),(($E13/100)*(VLOOKUP($D13,$B$5:$L$10,F$3,0)))))+(IF((OR(($D14=""),($D14=0))),(0),(($E14/100)*(VLOOKUP($D14,$B$5:$L$10,F$3,0)))))+(IF((OR(($D15=""),($D15=0))),(0),(($E15/100)*(VLOOKUP($D15,$B$5:$L$10,F$3,0))))) -> 17.23714 | G13: =(IF((OR(($D13=""),($D13=0))),(0),(($E13/100)*(VLOOKUP($D13,$B$5:$L$10,G$3,0)))))+(IF((OR(($D14=""),($D14=0))),(0),(($E14/100)*(VLOOKUP($D14,$B$5:$L$10,G$3,0)))))+(IF((OR(($D15=""),($D15=0))),(0),(($E15/100)*(VLOOKUP($D15,$B$5:$L$10,G$3,0))))) -> 1.28514 | H13: 0.7022 | I13: 12.1698 | J13: 0.07526 | K13: 0.09316 | L13: 0.10134 | M13: =IF((C13=""),(0),(F13+G13+0.7*H13)) -> 19.01382 | N13: =IF((C13=""),(0),(I13+35*J13+20*K13+0.25*L13)) -> 16.692435
D14: 3 | E14: 70
E15: =100-(E13+E14) -> 0
B16: 8 | C16: =CONCATENATE((D16),(IF((D17=""),(""),(" + "))),D17,(IF((D18=""),(""),(" + "))),D18) ->  | F16: =(IF((OR(($D16=""),($D16=0))),(0),(($E16/100)*(VLOOKUP($D16,$B$5:$L$13,F$3,0)))))+(IF((OR(($D17=""),($D17=0))),(0),(($E17/100)*(VLOOKUP($D17,$B$5:$L$13,F$3,0)))))+(IF((OR(($D18=""),($D18=0))),(0),(($E18/100)*(VLOOKUP($D18,$B$5:$L$13,F$3,0))))) -> 0 | G16: =(IF((OR(($D16=""),($D16=0))),(0),(($E16/100)*(VLOOKUP($D16,$B$5:$L$13,G$3,0)))))+(IF((OR(($D17=""),($D17=0))),(0),(($E17/100)*(VLOOKUP($D17,$B$5:$L$13,G$3,0)))))+(IF((OR(($D18=""),($D18=0))),(0),(($E18/100)*(VLOOKUP($D18,$B$5:$L$13,G$3,0))))) -> 0 | H16: 0 | I16: 0 | J16: 0 | K16: 0 | L16: 0 | M16: =IF((C16=""),(0),(F16+G16+0.7*H16)) -> 0 | N16: =IF((C16=""),(0),(I16+35*J16+20*K16+0.25*L16)) -> 0
E18: =100-(E16+E17) -> 100
B19: 9 | C19: =CONCATENATE((D19),(IF((D20=""),(""),(" + "))),D20,(IF((D21=""),(""),(" + "))),D21) ->  | F19: =(IF((OR(($D19=""),($D19=0))),(0),(($E19/100)*(VLOOKUP($D19,$B$5:$L$16,F$3,0)))))+(IF((OR(($D20=""),($D20=0))),(0),(($E20/100)*(VLOOKUP($D20,$B$5:$L$16,F$3,0)))))+(IF((OR(($D21=""),($D21=0))),(0),(($E21/100)*(VLOOKUP($D21,$B$5:$L$16,F$3,0))))) -> 0 | G19: =(IF((OR(($D19=""),($D19=0))),(0),(($E19/100)*(VLOOKUP($D19,$B$5:$L$16,G$3,0)))))+(IF((OR(($D20=""),($D20=0))),(0),(($E20/100)*(VLOOKUP($D20,$B$5:$L$16,G$3,0)))))+(IF((OR(($D21=""),($D21=0))),(0),(($E21/100)*(VLOOKUP($D21,$B$5:$L$16,G$3,0))))) -> 0 | H19: 0 | I19: 0 | J19: 0 | K19: 0 | L19: 0 | M19: =IF((C19=""),(0),(F19+G19+0.7*H19)) -> 0 | N19: =IF((C19=""),(0),(I19+35*J19+20*K19+0.25*L19)) -> 0
E21: =100-(E19+E20) -> 100
B22: 10 | C22: =CONCATENATE((D22),(IF((D23=""),(""),(" + "))),D23,(IF((D24=""),(""),(" + "))),D24) ->  | F22: =(IF((OR(($D22=""),($D22=0))),(0),(($E22/100)*(VLOOKUP($D22,$B$5:$L$19,F$3,0)))))+(IF((OR(($D23=""),($D23=0))),(0),(($E23/100)*(VLOOKUP($D23,$B$5:$L$19,F$3,0)))))+(IF((OR(($D24=""),($D24=0))),(0),(($E24/100)*(VLOOKUP($D24,$B$5:$L$19,F$3,0))))) -> 0 | G22: =(IF((OR(($D22=""),($D22=0))),(0),(($E22/100)*(VLOOKUP($D22,$B$5:$L$19,G$3,0)))))+(IF((OR(($D23=""),($D23=0))),(0),(($E23/100)*(VLOOKUP($D23,$B$5:$L$19,G$3,0)))))+(IF((OR(($D24=""),($D24=0))),(0),(($E24/100)*(VLOOKUP($D24,$B$5:$L$19,G$3,0))))) -> 0 | H22: 0 | I22: 0 | J22: 0 | K22: 0 | L22: 0 | M22: =IF((C22=""),(0),(F22+G22+0.7*H22)) -> 0 | N22: =IF((C22=""),(0),(I22+35*J22+20*K22+0.25*L22)) -> 0
E24: =100-(E22+E23) -> 100
Q31: * Nb, Ti, etc.

Sheet BALMFORTH
B2: DIAGRAMA DE BALMFORTH | H2: CAPA
F3: 5 | G3: 6 | H3: 7 | I3: 8 | J3: 9 | K3: 10 | L3: 11
B4: Nº | C4: ESPECIFICAÇÃO | E4: TEOR (%) | F4: Cr | G4: Mo | H4: Si | I4: * | J4: Ni | K4: C | L4: N | M4: Creq. | N4: Nieq.
B5: 1 | C5: =IF((SCHÄFFLER!C5=""),(""),(SCHÄFFLER!C5)) -> AÇO ESTRUTURAL CASO HDT | E5: 100 | F5: =SCHÄFFLER!F5 -> 5.873 | G5: =SCHÄFFLER!G5 -> 1.973 | H5: =SCHÄFFLER!H5 -> 1.16 | I5: =SCHÄFFLER!I5 -> 0.79 | J5: =SCHÄFFLER!J5 -> 0.61 | K5: =SCHÄFFLER!K5 -> 0.087 | L5: =DELONG!L5 -> 0.012 | M5: =IF((C5=""),(0),(F5+2*G5+1.5*H5+10*I5)) -> 19.459 | N5: =IF((C5=""),(0),(J5+35*K5+20*L5)) -> 3.895
B6: 2 | C6: =IF((SCHÄFFLER!C6=""),(""),(SCHÄFFLER!C6)) -> AWS ER309L | E6: 100 | F6: =SCHÄFFLER!F6 -> 24 | G6: =SCHÄFFLER!G6 -> 0.75 | H6: =SCHÄFFLER!H6 -> 0.475 | I6: =SCHÄFFLER!I6 -> 0 | J6: =SCHÄFFLER!J6 -> 13 | K6: =SCHÄFFLER!K6 -> 0.03 | L6: =DELONG!L6 -> 0 | M6: =IF((C6=""),(0),(F6+2*G6+1.5*H6+10*I6)) -> 26.2125 | N6: =IF((C6=""),(0),(J6+35*K6+20*L6)) -> 14.05
B7: 3 | C7: =IF((SCHÄFFLER!C7=""),(""),(SCHÄFFLER!C7)) -> AWS ER347 | E7: 100 | F7: =SCHÄFFLER!F7 -> 19 | G7: =SCHÄFFLER!G7 -> 1.2 | H7: =SCHÄFFLER!H7 -> 1.5 | I7: =SCHÄFFLER!I7 -> 0.8 | J7: =SCHÄFFLER!J7 -> 15 | K7: =SCHÄFFLER!K7 -> 0.08 | L7: =DELONG!L7 -> 0.13 | M7: 31.65 | N7: 20.4
B8: 4 | C8: =IF((SCHÄFFLER!C8=""),(""),(SCHÄFFLER!C8)) ->  | E8: 100 | F8: =SCHÄFFLER!F8 ->  | G8: =SCHÄFFLER!G8 ->  | H8: =SCHÄFFLER!H8 ->  | I8: =SCHÄFFLER!I8 ->  | J8: =SCHÄFFLER!J8 ->  | K8: =SCHÄFFLER!K8 ->  | L8: =DELONG!L8 ->  | M8: 0 | N8: 0
B9: 5 | C9: =IF((SCHÄFFLER!C9=""),(""),(SCHÄFFLER!C9)) ->  | E9: 100 | F9: =SCHÄFFLER!F9 ->  | G9: =SCHÄFFLER!G9 ->  | H9: =SCHÄFFLER!H9 ->  | I9: =SCHÄFFLER!I9 ->  | J9: =SCHÄFFLER!J9 ->  | K9: =SCHÄFFLER!K9 ->  | L9: =DELONG!L9 ->  | M9: 0 | N9: 0
B10: 6 | C10: =CONCATENATE((D10),(IF((D11=""),(""),(" + "))),D11,(IF((D12=""),(""),(" + "))),D12) -> 1 + 2 | D10: 1 | E10: 60 | F10: =(IF((OR(($D10=""),($D10=0))),(0),(($E10/100)*(VLOOKUP($D10,$B$5:$L$9,F$3,0)))))+(IF((OR(($D11=""),($D11=0))),(0),(($E11/100)*(VLOOKUP($D11,$B$5:$L$9,F$3,0)))))+(IF((OR(($D12=""),($D12=0))),(0),(($E12/100)*(VLOOKUP($D12,$B$5:$L$9,F$3,0))))) -> 13.1238 | G10: 1.4838 | H10: 0.886 | I10: 0.474 | J10: 5.566 | K10: 0.0642 | L10: 0.0072 | M10: =IF((C10=""),(0),(F10+2*G10+1.5*H10+10*I10)) -> 22.1604 | N10: =IF((C10=""),(0),(J10+35*K10+20*L10)) -> 7.957
D11: 2 | E11: 40
E12: =100-(E10+E11) -> 0
B13: 7 | C13: =CONCATENATE((D13),(IF((D14=""),(""),(" + "))),D14,(IF((D15=""),(""),(" + "))),D15) -> 6 + 3 | D13: 6 | E13: 30 | F13: =(IF((OR(($D13=""),($D13=0))),(0),(($E13/100)*(VLOOKUP($D13,$B$5:$L$10,F$3,0)))))+(IF((OR(($D14=""),($D14=0))),(0),(($E14/100)*(VLOOKUP($D14,$B$5:$L$10,F$3,0)))))+(IF((OR(($D15=""),($D15=0))),(0),(($E15/100)*(VLOOKUP($D15,$B$5:$L$10,F$3,0))))) -> 17.23714 | G13: 1.28514 | H13: 1.3158 | I13: 0.7022 | J13: 12.1698 | K13: 0.07526 | L13: 0.09316 | M13: =IF((C13=""),(0),(F13+2*G13+1.5*H13+10*I13)) -> 28.80312 | N13: =IF((C13=""),(0),(J13+35*K13+20*L13)) -> 16.6671
D14: 3 | E14: 70
E15: =100-(E13+E14) -> 0
B16: 8 | C16: =CONCATENATE((D16),(IF((D17=""),(""),(" + "))),D17,(IF((D18=""),(""),(" + "))),D18) ->  | F16: =(IF((OR(($D16=""),($D16=0))),(0),(($E16/100)*(VLOOKUP($D16,$B$5:$L$13,F$3,0)))))+(IF((OR(($D17=""),($D17=0))),(0),(($E17/100)*(VLOOKUP($D17,$B$5:$L$13,F$3,0)))))+(IF((OR(($D18=""),($D18=0))),(0),(($E18/100)*(VLOOKUP($D18,$B$5:$L$13,F$3,0))))) -> 0 | G16: 0 | H16: 0 | I16: 0 | J16: 0 | K16: 0 | L16: 0 | M16: =IF((C16=""),(0),(F16+2*G16+1.5*H16+10*I16)) -> 0 | N16: =IF((C16=""),(0),(J16+35*K16+20*L16)) -> 0
E18: =100-(E16+E17) -> 100
B19: 9 | C19: =CONCATENATE((D19),(IF((D20=""),(""),(" + "))),D20,(IF((D21=""),(""),(" + "))),D21) ->  | F19: =(IF((OR(($D19=""),($D19=0))),(0),(($E19/100)*(VLOOKUP($D19,$B$5:$L$16,F$3,0)))))+(IF((OR(($D20=""),($D20=0))),(0),(($E20/100)*(VLOOKUP($D20,$B$5:$L$16,F$3,0)))))+(IF((OR(($D21=""),($D21=0))),(0),(($E21/100)*(VLOOKUP($D21,$B$5:$L$16,F$3,0))))) -> 0 | G19: 0 | H19: 0 | I19: 0 | J19: 0 | K19: 0 | L19: 0 | M19: =IF((C19=""),(0),(F19+2*G19+1.5*H19+10*I19)) -> 0 | N19: =IF((C19=""),(0),(J19+35*K19+20*L19)) -> 0
E21: =100-(E19+E20) -> 100
B22: 10 | C22: =CONCATENATE((D22),(IF((D23=""),(""),(" + "))),D23,(IF((D24=""),(""),(" + "))),D24) ->  | E22: 50 | F22: =(IF((OR(($D22=""),($D22=0))),(0),(($E22/100)*(VLOOKUP($D22,$B$5:$L$19,F$3,0)))))+(IF((OR(($D23=""),($D23=0))),(0),(($E23/100)*(VLOOKUP($D23,$B$5:$L$19,F$3,0)))))+(IF((OR(($D24=""),($D24=0))),(0),(($E24/100)*(VLOOKUP($D24,$B$5:$L$19,F$3,0))))) -> 0 | G22: 0 | H22: 0 | I22: 0 | J22: 0 | K22: 0 | L22: 0 | M22: =IF((C22=""),(0),(F22+2*G22+1.5*H22+10*I22)) -> 0 | N22: =IF((C22=""),(0),(J22+35*K22+20*L22)) -> 0
E23: 50
E24: =100-(E22+E23) -> 0
Q31: * Nb, Ti, etc.

Sheet Plan2 (hidden)
B2: X | C2: L1 | D2: L2 | E2: L3 | F2: L4 | G2: L5
B3: 0 | C3: =(-0.8057*(0))+25.4 -> 25.4 | E3: =(-3.0435*(0))+7 -> 7 | F3: =(-0.7724*(0))+19 -> 19
B4: 2.3 | E4: =(-3.0435*(2.3))+7 -> -5e-05
B5: 7.6 | D5: =(1.0895*(7.6))-7.7658 -> 0.5144
B6: 12.5 | G6: =(0.3273*(12.5))-4.0909 -> 0.00035
B7: 14.5
B8: 22 | F8: =(-0.7724*(22))+19 -> 2.0072
B9: 26 | C9: =(-0.8057*(26))+25.4 -> 4.4518
B10: 36.5 | D10: =(1.0895*(36.5))-7.7658 -> 32.00095
B11: 40 | G11: =(0.3273*(40))-4.0909 -> 9.0011
B13: X | C13: L1 | D13: L2 | E13: L3 | F13: L4 | G13: L5 | H13: L6 | I13: L7 | J13: L8 | K13: L9 | L13: L10 | M13: L11
B14: 16 | C14: 15.5
B15: 21.5 | C15: 10
B16: 16 | D16: 10
B17: 23.75 | D17: 21
B18: 16.6 | E18: 10
B19: 25 | E19: 21
B20: 17.2 | F20: 10
B21: 25 | F21: 20.2
B22: 17.7 | G22: 10
B23: 25 | G23: 19.3
B24: 18.1 | H24: 10
B25: 25 | H25: 18.7
B26: 18.5 | I26: 10
B27: 25 | I27: 18
B28: 18.9 | J28: 10
B29: 25 | J29: 17.3
B30: 19.3 | K30: 10
B31: 25 | K31: 16.6
B32: 19.75 | L32: 10
B33: 25 | L33: 16
B34: 20.2 | M34: 10
B35: 25 | M35: 15.3

Sheet MATERIAIS
B2: MATERIAIS DE SOLDA MAIS COMUNS | E2: CAPA
B4: ESPECIFICAÇÃO | C4: TIPO | D4: Carbono (C) | E4: Cobre (Cu) | F4: Cromo (Cr) | G4: Manganês (Mn) | H4: Molibdênio (Mo) | I4: Níquel (Ni) | J4: Nitrogênio (N) | K4: Silício (Si) | L4: Outros (Nb, Ti, Al, etc.)
B5: 11Cr 2.5Ni | C5: SM | D5: 0.011 | E5: 0.48 | F5: 10.6 | G5: 1.77 | H5: 0.06 | I5: 2.4 | J5: 0.006 | K5: 0.1 | L5: 2.406
B6: 12Cr 4.5Ni 1.5Mo | C6: SM | D6: 0.017 | E6: 0.51 | F6: 11.7 | G6: 1.77 | H6: 1.39 | I6: 4.9 | J6: 0.011 | K6: 0.2 | L6: 4.907
B7: 12Cr 6.5Ni 2.5Mo | C7: SM | D7: 0.018 | E7: 0.49 | F7: 12.6 | G7: 1.72 | H7: 2.32 | I7: 6.5 | J7: 0.011 | K7: 0.09 | L7: 6.508
B8: AISI 444 | C8: F | D8: 0.02 | E8: 0 | F8: 18 | G8: 1 | H8: 2.1 | I8: 1 | J8: 0.03 | K8: 1 | L8: 0.6
B9: ER 317 | C9: SF | D9: 0.06 | E9: 0.75 | F9: 19 | G9: 1.8 | H9: 3.5 | I9: 14 | J9: 0 | K9: 0.45 | L9: 0.6
B10: AISI 405 | C10: F | D10: 0.08 | E10: 0 | F10: 12.5 | G10: 1 | H10: 0 | I10: 0 | J10: 0 | K10: 1 | L10: 0.2
B11: AISI 409 | C11: F | D11: 0.08 | E11: 0 | F11: 11.2 | G11: 1 | H11: 0 | I11: 0.5 | J11: 0 | K11: 1 | L11: 0.5
B12: AISI 430 | C12: F | D12: 0.12 | E12: 0 | F12: 17 | G12: 1 | H12: 0 | I12: 0 | J12: 0 | K12: 1 | L12: 0
B13: AISI 430Ti | C13: F | D13: 0.12 | E13: 0 | F13: 17 | G13: 1 | H13: 0 | I13: 0 | J13: 0 | K13: 1 | L13: 0.5
B14: AISI 430Nb | C14: F | D14: 0.12 | E14: 0 | F14: 17 | G14: 1 | H14: 0 | I14: 0 | J14: 0 | K14: 1 | L14: 0.5
B15: AISI 442 | C15: F | D15: 0.2 | E15: 0 | F15: 21.5 | G15: 1 | H15: 0 | I15: 1 | J15: 0 | K15: 1 | L15: 1
B16: AISI 446 | C16: F | D16: 0.25 | E16: 0 | F16: 25 | G16: 1 | H16: 0 | I16: 0 | J16: 0 | K16: 1 | L16: 0
B17: AISI 410 | C17: M | D17: 0.15 | E17: 0 | F17: 12.5 | G17: 1 | H17: 0 | I17: 0 | J17: 0 | K17: 1 | L17: 0
B18: AISI 420 | C18: M | D18: 0.15 | E18: 0 | F18: 13 | G18: 1 | H18: 0 | I18: 0 | J18: 0 | K18: 1 | L18: 0
B19: AISI 440A | C19: M | D19: 0.68 | E19: 0 | F19: 17 | G19: 1 | H19: 0.75 | I19: 0 | J19: 0 | K19: 1 | L19: 0
B20: AISI 440B | C20: M | D20: 0.85 | E20: 0 | F20: 17 | G20: 1 | H20: 0.75 | I20: 0 | J20: 0 | K20: 1 | L20: 0
B21: AISI 440C | C21: M | D21: 1.08 | E21: 0 | F21: 17 | G21: 1 | H21: 0.75 | I21: 0 | J21: 0 | K21: 1 | L21: 0
B22: AISI 431 | C22: M | D22: 0.2 | E22: 0 | F22: 16 | G22: 1 | H22: 0 | I22: 0.19 | J22: 0 | K22: 1 | L22: 0
B23: AISI 201 | C23: A | D23: 0.15 | E23: 0 | F23: 17 | G23: 6.5 | H23: 0 | I23: 4.5 | J23: 0.25 | K23: 1 | L23: 0
B24: AISI 301 | C24: A | D24: 0.15 | E24: 0 | F24: 17 | G24: 2 | H24: 0 | I24: 7 | J24: 0 | K24: 1 | L24: 0
B25: AISI 302 | C25: A | D25: 0.15 | E25: 0 | F25: 18 | G25: 2 | H25: 0 | I25: 9 | J25: 0 | K25: 1 | L25: 0
B26: AISI 304 | C26: A | D26: 0.08 | E26: 0 | F26: 19 | G26: 2 | H26: 0 | I26: 9.3 | J26: 0 | K26: 1 | L26: 0
B27: AISI 304L | C27: A | D27: 0.03 | E27: 0 | F27: 19 | G27: 2 | H27: 0 | I27: 9.5 | J27: 0 | K27: 1 | L27: 0
B28: AISI 304N | C28: A | D28: 0.08 | E28: 0 | F28: 19 | G28: 2 | H28: 0 | I28: 9.3 | J28: 0.23 | K28: 1 | L28: 0
B29: AISI 316 | C29: A | D29: 0.08 | E29: 0 | F29: 17 | G29: 2 | H29: 2.5 | I29: 12 | J29: 0 | K29: 1 | L29: 0
B30: AISI 316L | C30: A | D30: 0.03 | E30: 0 | F30: 17 | G30: 2 | H30: 2.5 | I30: 12 | J30: 0 | K30: 1 | L30: 0
B31: AISI 317 | C31: A | D31: 0.08 | E31: 0 | F31: 19 | G31: 2 | H31: 3.5 | I31: 13 | J31: 0 | K31: 1 | L31: 0
B32: AISI 321 | C32: A | D32: 0.08 | E32: 0 | F32: 18 | G32: 2 | H32: 0 | I32: 10.5 | J32: 0 | K32: 1 | L32: 0.4
B33: AISI 347 | C33: A | D33: 0.08 | E33: 0 | F33: 18 | G33: 2 | H33: 0 | I33: 11 | J33: 0 | K33: 1 | L33: 0.8
B34: AISI 310 | C34: A | D34: 0.25 | E34: 0 | F34: 25 | G34: 2 | H34: 0 | I34: 20.5 | J34: 0 | K34: 1.5 | L34: 0
B35: AISI 310S | C35: A | D35: 0.08 | E35: 0 | F35: 25 | G35: 2 | H35: 0 | I35: 20.5 | J35: 0 | K35: 1.5 | L35: 0
B36: SAF 2304 (UNS S32304 / UR35N) | C36: D | D36: 0 | E36: 0 | F36: 23 | G36: 0 | H36: 0.2 | I36: 4 | J36: 0.1 | K36: 0 | L36: 0
B37: 3RE60 (UNS S31500) | C37: D | D37: 0 | E37: 0 | F37: 18.5 | G37: 0 | H37: 2.7 | I37: 5 | J37: 0.07 | K37: 1.5 | L37: 0
B38: SAF 2205 (UNS S31803 / UR45) | C38: D | D38: 0 | E38: 0 | F38: 22 | G38: 0 | H38: 3 | I38: 5.3 | J38: 0.17 | K38: 0 | L38: 0
B39: 10RE51 (UNS 32900) | C39: D | D39: 0 | E39: 0 | F39: 25 | G39: 0 | H39: 1.5 | I39: 4.5 | J39: 0 | K39: 0 | L39: 0
B40: DP3 (UNS 31260) | C40: D | D40: 0 | E40: 0.5 | F40: 25 | G40: 0 | H40: 3 | I40: 6.5 | J40: 0.16 | K40: 0 | L40: 0.3
B41: FERRALIUM 255 (UNS S32550 / UR52N) | C41: D | D41: 0 | E41: 1.6 | F41: 25 | G41: 0 | H41: 3 | I41: 6.5 | J41: 0.18 | K41: 0 | L41: 0
B42: UR47N (UNS S32200) | C42: D | D42: 0 | E42: 0 | F42: 25 | G42: 0 | H42: 3 | I42: 6.5 | J42: 0.18 | K42: 0 | L42: 0
B43: ZERON 100 (UNS S32700) | C43: SD | D43: 0 | E43: 0.7 | F43: 25 | G43: 0 | H43: 3.6 | I43: 7 | J43: 0.25 | K43: 0 | L43: 0.7
B44: UR52N+ | C44: SD | D44: 0 | E44: 1.5 | F44: 25 | G44: 0 | H44: 3.8 | I44: 6 | J44: 0.25 | K44: 0 | L44: 0
B45: SAF 2507 (UNS S32750) | C45: SD | D45: 0 | E45: 0 | F45: 25 | G45: 0 | H45: 3.8 | I45: 7 | J45: 0.27 | K45: 0 | L45: 0
B46: A-286 | C46: EP | D46: 0.05 | E46: 0 | F46: 15 | G46: 0 | H46: 1.2 | I46: 26 | J46: 0 | K46: 0 | L46: 2.45
B47: AISI W | C47: EP | D47: 0.07 | E47: 0 | F47: 16.75 | G47: 0.5 | H47: 0 | I47: 6.75 | J47: 0 | K47: 0.5 | L47: 1
B48: AISI 17-4 PH | C48: EP | D48: 0.04 | E48: 3.6 | F48: 15.5 | G48: 0.4 | H48: 0 | I48: 4.25 | J48: 0 | K48: 0.5 | L48: 0.25
B49: AISI 17-7 PH | C49: EP | D49: 0.07 | E49: 0 | F49: 17 | G49: 0.7 | H49: 0 | I49: 7 | J49: 0 | K49: 0.4 | L49: 1.15
B50: AISI PH 15-7 Mo | C50: EP | D50: 0.07 | E50: 0 | F50: 15 | G50: 0.7 | H50: 2.25 | I50: 7 | J50: 0 | K50: 0.4 | L50: 1.15
B51: AISI AM 350 | C51: EP | D51: 0.1 | E51: 0 | F51: 16.5 | G51: 0.75 | H51: 2.25 | I51: 4.25 | J51: 0.1 | K51: 0.35 | L51: 0
B52: AISI 15-7 PH | C52: EP | D52: 0.07 | E52: 0 | F52: 17 | G52: 0.5 | H52: 2.5 | I52: 7 | J52: 0 | K52: 0.2 | L52: 1.2
B53: AISI PH 14-8 Mo | C53: EP | D53: 0.04 | E53: 0 | F53: 15.1 | G53: 0.02 | H53: 2.2 | I53: 8.2 | J53: 0 | K53: 0.02 | L53: 1.2
B54: AISI AM 355 | C54: EP | D54: 0.13 | E54: 0 | F54: 15.5 | G54: 0.85 | H54: 2.75 | I54: 4.25 | J54: 0.1 | K54: 0.35 | L54: 0
B55: AISI 15-5 PH | C55: EP | D55: 0.04 | E55: 3.4 | F55: 15 | G55: 0.3 | H55: 2.5 | I55: 4.2 | J55: 0 | K55: 0.4 | L55: 0.25
B56: SAE 4340 | C56: BL | D56: 0.4 | E56: 0 | F56: 1.85 | G56: 0.4 | H56: 0.25 | I56: 0.8 | J56: 0 | K56: 0.03 | L56: 0
B57: AWS E308L | C57: EA | D57: 0.03 | E57: 0.5 | F57: 19.5 | G57: 1.5 | H57: 0.5 | I57: 10.5 | J57: 0 | K57: 0.9 | L57: 0
B58: AWS E309L | C58: EA | D58: 0.03 | E58: 0.5 | F58: 23.5 | G58: 1.5 | H58: 0.5 | I58: 13 | J58: 0 | K58: 0.9 | L58: 0
B59: AWS E309MoL | C59: EA | D59: 0.03 | E59: 0.5 | F59: 23.5 | G59: 1.5 | H59: 2.5 | I59: 13 | J59: 0 | K59: 0.9 | L59: 0
B60: AWS E312 | C60: EA | D60: 0.15 | E60: 0.5 | F60: 30 | G60: 1.5 | H60: 0.5 | I60: 9.25 | J60: 0 | K60: 0.9 | L60: 0
B61: AWS E307 | C61: EA | D61: 0.13 | E61: 0.5 | F61: 19.3 | G61: 4.025 | H61: 1 | I61: 9.75 | J61: 0 | K61: 0.9 | L61: 0
B62: AWS E308 | C62: EA | D62: 0.08 | E62: 0.5 | F62: 19.5 | G62: 1.5 | H62: 0.5 | I62: 10 | J62: 0 | K62: 0.9 | L62: 0
B63: AWS E308MoL | C63: EA | D63: 0.03 | E63: 0.5 | F63: 19.5 | G63: 1.5 | H63: 2.5 | I63: 10.5 | J63: 0 | K63: 0.9 | L63: 0
B64: AWS E309 | C64: EA | D64: 0.15 | E64: 0.5 | F64: 23.5 | G64: 1.5 | H64: 0.5 | I64: 13 | J64: 0 | K64: 0.9 | L64: 0
B65: AWS E310 | C65: EA | D65: 0.2 | E65: 0.5 | F65: 26.5 | G65: 1.75 | H65: 0.5 | I65: 21.75 | J65: 0 | K65: 0.75 | L65: 0
B66: AWS E316 | C66: EA | D66: 0.08 | E66: 0.5 | F66: 18.5 | G66: 1.5 | H66: 2.25 | I66: 12.5 | J66: 0 | K66: 0.9 | L66: 0
B67: AWS ER308 | C67: EA | D67: 0.08 | E67: 0.75 | F67: 20.75 | G67: 1.75 | H67: 0.75 | I67: 10 | J67: 0 | K67: 0.475 | L67: 0
B68: AWS ER308H | C68: EA | D68: 0.06 | E68: 0.75 | F68: 20.75 | G68: 1.75 | H68: 0.5 | I68: 10 | J68: 0 | K68: 0.475 | L68: 0
B69: AWS ER308L | C69: EA | D69: 0.03 | E69: 0.75 | F69: 20.75 | G69: 1.75 | H69: 0.75 | I69: 10 | J69: 0 | K69: 0.475 | L69: 0
B70: AWS ER308Mo | C70: EA | D70: 0.08 | E70: 0.75 | F70: 19.5 | G70: 1.75 | H70: 2.5 | I70: 10.5 | J70: 0 | K70: 0.475 | L70: 0
B71: AWS ER308Si | C71: EA | D71: 0.08 | E71: 0.75 | F71: 20.75 | G71: 1.75 | H71: 0.75 | I71: 10 | J71: 0 | K71: 0.475 | L71: 0
B72: AWS ER309 | C72: EA | D72: 0.12 | E72: 0.75 | F72: 24 | G72: 1.75 | H72: 0.75 | I72: 13 | J72: 0 | K72: 0.475 | L72: 0
B73: AWS ER309L | C73: EA | D73: 0.03 | E73: 0.75 | F73: 24 | G73: 1.75 | H73: 0.75 | I73: 13 | J73: 0 | K73: 0.475 | L73: 0
B74: AWS ER310 | C74: EA | D74: 0.115 | E74: 0.75 | F74: 26.5 | G74: 1.75 | H74: 0.75 | I74: 21.25 | J74: 0 | K74: 0.475 | L74: 0
B75: AWS ER312 | C75: EA | D75: 0.15 | E75: 0.75 | F75: 30 | G75: 1.75 | H75: 0.75 | I75: 9.25 | J75: 0 | K75: 0.475 | L75: 0
B76: AWS ER316 | C76: EA | D76: 0.08 | E76: 0.75 | F76: 19 | G76: 1.75 | H76: 2.5 | I76: 12.5 | J76: 0 | K76: 0.475 | L76: 0
B77: AWS ER317 | C77: EA | D77: 0.08 | E77: 0.75 | F77: 19.5 | G77: 1.75 | H77: 3.5 | I77: 14 | J77: 0 | K77: 0.475 | L77: 0
B78: AÇO ESTRUTURAL CASO HDT | C78: BL | D78: 0.087 | E78: 0.063 | F78: 5.873 | G78: 0.873 | H78: 1.973 | I78: 0.61 | J78: 0.012 | K78: 1.16 | L78: 0.79
B79: AWS ER347 | C79: EA | D79: 0.08 | E79: 0 | F79: 19 | G79: 1 | H79: 1.2 | I79: 15 | J79: 0.13 | K79: 1.5 | L79: 0.8
B80: INCONEL 625 | C80: LE | D80: 0.1 | E80: 0 | F80: 21.5 | G80: 0.5 | H80: 9 | I80: 57.45 | J80: 0 | K80: 0.5 | L80: 4.55
B81: AWS E309MoL-16 | C81: EA | D81: 0.03 | E81: 0 | F81: 23 | G81: 0 | H81: 2.5 | I81: 13 | J81: 0 | K81: 0 | L81: 0
